[Event "German Bundesliga 2024-25"]
[Site "Germany"]
[Date "2024.10.06"]
[Round "2.6"]
[White "Sawatzki, Frank"]
[Black "Neef, Maximilian"]
[Result "0-1"]
[Annotator "TA"]
[ECO "C02"]
[WhiteElo "2354"]
[BlackElo "2465"]
[PlyCount "61"]
[EventDate "2024.09.27"]
[EventType "team-tourn"]
[EventCountry "GER"]
[SourceTitle "playchess.com"]
[Source "ChessBase"]
[SourceQuality "1"]
[WhiteTeam "St. Pauli"]
[BlackTeam "TU Dresden"]
[TimeControl "40/5400+30:1800+30"]

{[%evp 11,61,-12,-10,-26,-9,-31,-25,-22,-21,-27,-29,-67,-8,-17,26,0,2,0,14,-48,-42,-82,-66,-69,-69,-69,-60,-73,-32,-134,-131,-120,-128,-200,-204,-295,-283,-295,-293,-524,-512,-531,-396,-375,-388,-393,-388,-429,-460,-551,-583,-667]} 1. e4 {[%emt 0:00:07]} e6 {[%emt 0:00:07]} 2. d4 {[%emt 0:00:03]} d5 {[%emt 0:00:04]} 3. e5 {[%emt 0:00:19]} c5 {[%emt 0:00:06]} 4. c3 {[%emt 0:00:03]} Nc6 {[%emt 0:00:06]} 5. Nf3 {[%emt 0:00:03]} Qb6 {[%emt 0:00:06]} 6. Bd3 {[%emt 0:00:28]} cxd4 {[%emt 0:00:07]} 7. O-O {[%emt 0:00:06]} Bd7 {[%emt 0:00:08]} 8. Re1 {[%emt 0:00:11]} Nge7 {[%emt 0:01:25]} 9. h4 {[%emt 0:05:25] Black has an edge.} Rc8 {[%emt 0:00:11]} 10. Na3 {[%emt 0:19:15]} a6 {[%emt 0:02:07] Prevents Nb5.} 11. c4 {[%emt 0:05:28]} h6 {[%emt 0:12:37]} (11... Nb4 $1 $15) 12. b3 $11 {[%emt 0:08:12]} Na5 {[%emt 0:07:14]} 13. Bb2 {[%emt 0:12:43]} dxc4 {[%emt 0:01:35]} 14. Bxd4 {[%emt 0:01:15]} Qd8 {[%emt 0:00:51]} 15. bxc4 {[%emt 0:12:51]} (15. Nxc4 $11 Nxc4 16. bxc4) 15... Nec6 {[%emt 0:19:38][%cal Oc6d4] [#] White must now prevent ...Nxd4!} 16. Bb2 {[%emt 0:01:58]} Bc5 {[%emt 0:03:44][%cal Oc5f2]} 17. Qe2 {[%emt 0:04:17]} Nb4 {[%emt 0:03:48] Black is more active.} 18. Be4 {[%emt 0:03:38]} Bc6 {[%emt 0:02:41]} 19. Red1 {[%emt 0:06:07]} Qe7 {[%emt 0:00:11]} 20. g3 {[%emt 0:03:23]} (20. Bxc6+ $1 $15 Nbxc6 (20... Naxc6 21. Nb1 $11) 21. Nb1) 20... Bxe4 $17 {[%emt 0:05:28]} 21. Qxe4 {[%emt 0:00:04]} O-O {[%emt 0:00:34]} 22. Nh2 {[%emt 0:03:09]} (22. Kg2 $17) 22... Rfd8 $19 {[%emt 0:07:00]} 23. Ng4 {[%emt 0:01:33]} (23. Bc3 {keeps fighting.}) 23... Rxd1+ {[%emt 0:01:46]} 24. Rxd1 {[%emt 0:00:06]} Rd8 {[%emt 0:00:11]} ({Don't play} 24... Nxa2 25. Nf6+ gxf6 26. exf6 $17) 25. Nf6+ $2 (25. Ne3) 25... gxf6 {[%emt 0:06:59]} 26. Qg4+ {[%emt 0:08:58]} Kh7 {[%emt 0:04:28]} 27. exf6 {[%emt 0:02:15][%csl Gb2,Gf6][%cal Rg4g7] [#]} Rxd1+ {[%emt 0:00:07]} 28. Qxd1 {[%emt 0:00:04]} Qf8 {[%emt 0:03:44]} 29. Kg2 {[%emt 0:01:41]} Qg8 {[%emt 0:02:24][%cal Og8g6]} (29... Nxa2 30. Qb1+ Kg8 31. Qxa2 $15) 30. h5 {[%emt 0:00:18]} Qg5 {[%emt 0:02:11][%cal Og5f5]} (30... Nxa2 31. Qb1+ Kh8 32. Qxa2 $17) 31. Nc2 {[%emt 0:01:28] Weighted Error Value: White=0.46/Black=0.15 (very precise) .  Mistake:       	White=5     	Black=1      Inaccurate:     	White=2     	Black=2      OK:         	White=7     	Black=13     Best:        	---       	Black=2} 0-1

[Event "German Bundesliga 2024-25"]
[Site "Germany"]
[Date "2024.10.06"]
[Round "2.7"]
[White "Costa, Leonardo"]
[Black "Buhmann, Rainer"]
[Result "1/2-1/2"]
[Annotator "TA"]
[ECO "C00"]
[WhiteElo "2472"]
[BlackElo "2552"]
[PlyCount "83"]
[EventDate "2024.09.27"]
[EventType "team-tourn"]
[EventCountry "GER"]
[SourceTitle "playchess.com"]
[Source "ChessBase"]
[SourceQuality "1"]
[WhiteTeam "Hamburg"]
[BlackTeam "Viernheim"]
[TimeControl "40/5400+30:1800+30"]

{[%evp 9,83,-1,21,4,10,-6,44,0,22,14,23,25,21,0,6,0,0,0,0,0,0,0,0,0,0,-10,-7,0,4,0,36,27,27,13,8,11,16,0,20,6,32,29,40,9,0,-6,-8,-18,14,16,12,5,6,2,6,-18,0,0,0,0,0,0,0,0,0,0,0,0,0,0,30,0,30,30,30,30]} 1. e4 {[%emt 0:00:03]} e6 {[%emt 0:00:07]} 2. Qe2 {[%emt 0:00:04]} Nc6 {[%emt 0:01:50]} 3. Nf3 {[%emt 0:00:04]} e5 {[%emt 0:00:43]} 4. c3 {[%emt 0:00:04]} Be7 {[%emt 0:10:19]} 5. g3 {[%emt 0:00:15]} Nf6 {[%emt 0:00:56]} 6. Bg2 {[%emt 0:00:04]} O-O {[%emt 0:00:18]} 7. O-O {[%emt 0:03:10]} d6 {[%emt 0:05:54]} (7... d5 $11) 8. h3 {[%emt 0:18:09] White is slightly better.} Re8 {[%emt 0:01:46]} 9. b4 {[%emt 0:08:01]} Bf8 {[%emt 0:01:55]} 10. d3 {[%emt 0:00:18]} h6 {[%emt 0:04:03]} 11. Nbd2 {[%emt 0:01:43]} Bd7 {[%emt 0:01:42]} 12. a4 {[%emt 0:02:36]} a6 {[%emt 0:03:20]} 13. Nc4 {[%emt 0:15:15]} b5 {[%emt 0:06:41]} 14. axb5 {[%emt 0:01:02]} axb5 {[%emt 0:00:11]} 15. Rxa8 {[%emt 0:00:02]} Qxa8 {[%emt 0:00:13]} 16. Ne3 {[%emt 0:00:03]} Ne7 {[%emt 0:03:29]} 17. Nh2 {[%emt 0:15:06]} Qc8 {[%emt 0:11:21]} 18. Nhg4 {[%emt 0:01:54]} Nh7 {[%emt 0:04:15]} 19. h4 {[%emt 0:01:33]} c5 {[%emt 0:04:52]} (19... h5 $5 20. Nh2 $8 g6 $11) 20. bxc5 {[%emt 0:06:05]} Qxc5 {[%emt 0:00:52]} 21. Bb2 {[%emt 0:01:30]} h5 {[%emt 0:06:15]} 22. Nh2 {[%emt 0:00:35][%cal Bg4h2,Bh2f3,Bf3g5][%mdl 32]} Nf6 {[%emt 0:00:17]} 23. Ra1 {[%emt 0:03:55]} Qc7 {[%emt 0:02:15]} 24. Nf3 {[%emt 0:02:23]} Nc8 {[%emt 0:03:21]} 25. Ng5 {[%emt 0:00:44]} Nb6 {[%emt 0:01:08]} 26. Bf3 {[%emt 0:12:49]} g6 {[%emt 0:02:05]} 27. c4 {[%emt 0:01:09]} bxc4 {[%emt 0:05:31]} 28. dxc4 {[%emt 0:00:04]} Ra8 {[%emt 0:07:32]} 29. Rxa8 {[%emt 0:00:40]} Nxa8 {[%emt 0:00:03]} 30. Nd5 {[%emt 0:02:59]} Nxd5 {[%emt 0:00:36]} 31. cxd5 {[%emt 0:00:06][%cal Of3h5]} Be7 {[%emt 0:01:25]} 32. g4 {[%emt 0:01:48]} Bxg5 {[%emt 0:02:06]} 33. hxg5 {[%emt 0:00:03]} hxg4 {[%emt 0:01:21]} 34. Bxg4 {[%emt 0:00:04]} Bxg4 {[%emt 0:00:32]} 35. Qxg4 $11 {[%emt 0:00:02][%mdl 4096] Endgame. KQB-KQN} Nb6 {[%emt 0:00:32]} 36. Qe2 {[%emt 0:01:45] Repels Qc2} Qc5 {[%emt 0:02:08]} 37. Qd3 {[%emt 0:01:09]} Qc8 {[%emt 0:02:24]} 38. Kh2 {[%emt 0:00:37]} Qg4 {[%emt 0:03:42]} 39. Bc1 $1 {[%emt 0:00:06]} Nd7 {[%emt 0:01:00]} 40. Qh3 {[%emt 0:01:47] Prevents Nc5.} Qxh3+ {[%emt 0:00:55]} 41. Kxh3 {[%emt 0:30:04] [#] aiming for Ba3.} Kf8 {[%emt 0:30:22]} 42. Kg4 {[%emt 0:00:00] Weighted Error Value: White=0.09 (flawless) /Black=0.10 (very precise) .  Mistake:       	---       	Black=1      Inaccurate:     	White=3     	Black=5      OK:         	White=13    	Black=12     Best:        	---       	Black=2      Strong:       	White=1     	---} (42. Ba3 $5 Ke7 $8 43. Kg4 $14) 1/2-1/2

[Event "German Bundesliga 2024-25"]
[Site "Germany"]
[Date "2024.10.06"]
[Round "2.7"]
[White "Fedorovsky, Michael"]
[Black "Graf, Alexander"]
[Result "1/2-1/2"]
[Annotator "TA"]
[ECO "D46"]
[WhiteElo "2393"]
[BlackElo "2528"]
[PlyCount "88"]
[EventDate "2024.09.27"]
[EventType "team-tourn"]
[EventCountry "GER"]
[SourceTitle "playchess.com"]
[Source "ChessBase"]
[SourceQuality "1"]
[WhiteTeam "Bayern Muenchen"]
[BlackTeam "Deizisau"]
[TimeControl "40/5400+30:1800+30"]

{[%evp 18,88,13,19,47,3,52,29,32,14,0,-7,0,-3,0,0,0,0,0,0,0,0,10,14,7,5,5,0,3,6,9,0,0,0,0,0,15,14,74,-4,0,0,0,0,0,0,0,-8,0,0,0,-68,-70,-74,-74,-69,-77,-82,-83,-83,-87,-83,-83,-84,-8,-8,0,0,0,0,0,0,0]} 1. d4 {[%emt 0:00:02]} Nf6 {[%emt 0:00:09]} 2. c4 {[%emt 0:00:06]} e6 {[%emt 0:00:08]} 3. Nf3 {[%emt 0:00:53]} d5 {[%emt 0:00:39]} 4. Nc3 {[%emt 0:00:18]} c6 {[%emt 0:00:11]} 5. e3 {[%emt 0:01:36]} Nbd7 {[%emt 0:00:11]} 6. Qc2 {[%emt 0:00:48]} Be7 {[%emt 0:00:11]} 7. b3 {[%emt 0:03:56]} O-O {[%emt 0:02:45]} 8. Bb2 {[%emt 0:02:52]} b6 {[%emt 0:01:06]} 9. Bd3 {[%emt 0:03:10]} Bb7 {[%emt 0:00:15]} 10. O-O {[%emt 0:00:11]} Qc7 {[%emt 0:05:54]} 11. Rad1 {[%emt 0:10:02][%cal Of3e5]} Rfe8 {[%emt 0:06:44]} (11... h6 $11 {should be considered.}) 12. Rfe1 {[%emt 0:11:11]} Rad8 {[%emt 0:01:40] White has an edge.} 13. h3 {[%emt 0:09:30]} (13. Ne5 {seems wilder.} Nxe5 14. dxe5 dxc4 15. bxc4 Qxe5 16. Nd5) 13... h6 {[%emt 0:07:44]} 14. e4 {[%emt 0:15:29]} dxe4 {[%emt 0:04:34]} 15. Nxe4 {[%emt 0:00:04]} c5 {[%emt 0:01:22]} 16. dxc5 {[%emt 0:03:32]} Nxc5 {[%emt 0:19:31]} 17. Nxf6+ {[%emt 0:00:56]} Bxf6 {[%emt 0:00:27]} 18. Bxf6 {[%emt 0:01:27]} gxf6 {[%emt 0:00:09]} 19. Be2 {[%emt 0:00:58]} Rxd1 {[%emt 0:02:59]} 20. Rxd1 {[%emt 0:00:07]} Rd8 {[%emt 0:00:26]} 21. Rxd8+ {[%emt 0:03:06]} Qxd8 {[%emt 0:00:27]} 22. Qd2 {[%emt 0:00:28]} Qxd2 {[%emt 0:02:28]} 23. Nxd2 $11 {[%emt 0:00:21][%mdl 4096] Endgame. KBN-KBN} a5 {[%emt 0:00:08]} 24. Bf3 {[%emt 0:11:24]} Bxf3 {[%emt 0:01:03]} 25. Nxf3 {[%emt 0:00:39] KN-KN} Nd3 {[%emt 0:01:10]} 26. Nd2 {[%emt 0:00:24]} Nb4 {[%emt 0:05:54]} 27. a3 {[%emt 0:02:14]} Nc2 {[%emt 0:00:08] [#]} (27... Nc6 $11 {remains equal.}) 28. Ne4 {[%emt 0:05:01]} (28. c5 $1 $16 {[%cal Rc5c6] And now c6 would win.} bxc5 29. Nc4) 28... Nxa3 {[%emt 0:04:10]} 29. Nxf6+ {[%emt 0:00:52]} Kg7 {[%emt 0:00:07]} 30. Nd7 {[%emt 0:00:50]} a4 {[%emt 0:00:35]} 31. bxa4 {[%emt 0:00:41]} Nxc4 {[%emt 0:00:09]} 32. Kf1 {[%emt 0:03:11]} f6 {[%emt 0:00:18]} 33. Ke2 {[%emt 0:00:35]} Kf7 {[%emt 0:00:08]} 34. Kd3 {[%emt 0:01:37]} ({Better is} 34. Kf3 $1 $11) 34... Nb2+ $15 {[%emt 0:00:18]} 35. Kc3 {[%emt 0:01:37]} Nxa4+ {[%emt 0:00:07]} 36. Kb4 {[%emt 0:01:53]} Nb2 {[%emt 0:01:24] Strongly threatening ...Nd3+.} ({Much worse is} 36... Ke7 37. Nxf6 Nc5 38. Ng8+ Kf8 39. Nxh6 Nd3+ 40. Kb5 $11) 37. Nxb6 {[%emt 0:00:26]} Nd3+ {[%emt 0:00:26]} 38. Kc3 {[%emt 0:00:04]} Nf4 {[%emt 0:04:04]} 39. Kd4 {[%emt 0:01:47]} Nxg2 {[%emt 0:00:38]} 40. Ke4 {[%emt 0:00:04] Repels Nf4} e5 {[%emt 0:07:59]} (40... Nh4 $17 {White must now prevent ...f5+.} 41. f4 h5) 41. Kf5 $1 $11 {[%emt 0:35:27] The position is equal.} Nf4 {[%emt 0:39:51][%cal Of4h5]} 42. Nc4 {[%emt 0:00:00]} Nxh3 {[%emt 0:00:00]} 43. Nd6+ {[%emt 0:00:00]} Ke7 {[%emt 0:00:00]} 44. Ne4 {[%emt 0:00:00]} h5 {[%emt 0:00:00] Weighted Error Value: White=0.11 (very precise) /Black=0.13 (very precise) .  Mistake:       	White=2     	Black=3      Inaccurate:     	White=1     	---        OK:         	White=13    	Black=14     Best:        	White=3     	Black=2      Strong:       	White=1     	---} 1/2-1/2

[Event "German Bundesliga 2024-25"]
[Site "Germany"]
[Date "2024.10.06"]
[Round "2.7"]
[White "Gauglitz, Gernot"]
[Black "Krause, Jonah"]
[Result "0-1"]
[Annotator "TA"]
[ECO "D78"]
[WhiteElo "2378"]
[BlackElo "2350"]
[PlyCount "112"]
[EventDate "2024.09.27"]
[EventType "team-tourn"]
[EventCountry "GER"]
[SourceTitle "playchess.com"]
[Source "ChessBase"]
[SourceQuality "1"]
[WhiteTeam "TU Dresden"]
[BlackTeam "St. Pauli"]
[TimeControl "40/5400+30:1800+30"]

{[%evp 20,112,16,6,8,0,-2,0,0,0,37,39,52,52,116,98,110,106,161,133,150,109,93,60,73,35,29,12,4,-29,0,-26,0,-34,-35,-49,-36,-54,-77,-64,-43,-89,0,0,6,8,8,6,8,9,9,0,0,0,0,0,0,0,0,0,0,0,0,0,0,0,0,0,0,0,0,0,0,0,0,0,46,0,0,0,0,-50,-16,-43,-50,-41,-49,-104,-104,-170,-158,-155,-154,-29977,-29979]} 1. d4 {[%emt 0:00:02]} Nf6 {[%emt 0:01:11]} 2. Nf3 {[%emt 0:00:03]} g6 {[%emt 0:00:10]} 3. g3 {[%emt 0:00:04]} Bg7 {[%emt 0:00:06]} 4. Bg2 {[%emt 0:00:03]} O-O {[%emt 0:00:16]} 5. O-O {[%emt 0:00:05]} d5 {[%emt 0:00:08]} 6. b3 {[%emt 0:01:36]} c6 {[%emt 0:03:34]} 7. Bb2 {[%emt 0:00:12]} a5 {[%emt 0:08:42]} 8. c4 {[%emt 0:07:00]} a4 {[%emt 0:02:09] D78: Fianchetto Grünfeld: 6 0-0 c6.} 9. Na3 {[%emt 0:02:17]} Bf5 {[%emt 0:03:28]} 10. Ne5 $146 {[%emt 0:04:06]} ({Predecessor:} 10. Nh4 Be6 11. c5 Ne4 12. Qc2 f5 13. f3 Nf6 14. Bh3 Bc8 15. b4 Nh5 16. Bc3 {0-1 Gutierrez Olivares,D (2354)-Tikhonov,V (2160) Titled Tuesday intern op 14th Nov Early blitz 2023 (9)}) 10... Qa5 {[%emt 0:07:02]} 11. Nd3 {[%emt 0:09:51]} Nbd7 {[%emt 0:12:12]} 12. b4 {[%emt 0:02:35]} Qa6 {[%emt 0:01:03]} 13. Rc1 {[%emt 0:07:12]} dxc4 {[%emt 0:13:42]} 14. Nxc4 {[%emt 0:00:18]} Be6 {[%emt 0:00:21]} 15. Qc2 {[%emt 0:03:28]} a3 {[%emt 0:06:30]} 16. Nxa3 {[%emt 0:03:48]} (16. Bxa3 Qxc4 17. Qxc4 Bxc4 18. Rxc4 Rxa3 $19) 16... Bxa2 {[%emt 0:03:21]} ({Black should try} 16... Bh6 $14) 17. e4 $16 {[%emt 0:06:22]} Qa4 {[%emt 0:03:47]} 18. Qd2 {[%emt 0:02:44]} Qa7 {[%emt 0:05:19]} (18... Be6 $16) 19. Ra1 {[%emt 0:09:55]} Bb3 {[%emt 0:00:54]} 20. Qc3 {[%emt 0:03:14]} Ba4 {[%emt 0:01:30]} 21. Rfe1 {[%emt 0:06:57]} Qb8 {[%emt 0:03:54]} 22. Nf4 {[%emt 0:07:19]} e5 {[%emt 0:01:07]} 23. dxe5 {[%emt 0:00:35]} Ng4 {[%emt 0:01:20]} 24. Nd3 {[%emt 0:00:16]} Ngxe5 {[%emt 0:00:51]} 25. Kh1 {[%emt 0:00:32]} Qd6 {[%emt 0:01:19]} (25... Bf6 {simplifies} 26. Nxe5 Qxe5 27. Qxe5 Bxe5 28. Reb1 g5) 26. Nc5 {[%emt 0:05:42]} Nxc5 {[%emt 0:00:34]} 27. bxc5 {[%emt 0:00:03]} Qd3 {[%emt 0:00:38]} 28. Bf1 {[%emt 0:03:28]} Qxc3 {[%emt 0:02:48]} 29. Bxc3 {[%emt 0:00:02]} Rfd8 {[%emt 0:00:41]} 30. Reb1 {[%emt 0:02:17]} (30. Rec1 $15 {might be stronger.}) 30... Rab8 {[%emt 0:04:21]} (30... Nd7 $17 31. Bxg7 Kxg7 32. Rxb7 Nxc5) 31. f4 $11 {[%emt 0:02:25]} Nd3 {[%emt 0:07:12]} 32. Bxg7 {[%emt 0:00:19]} Kxg7 {[%emt 0:00:02]} 33. Bxd3 $1 {[%emt 0:02:43]} Rxd3 {[%emt 0:00:01]} 34. Nc4 {[%emt 0:00:49]} Bb3 {[%emt 0:00:59]} 35. Nd6 {[%emt 0:04:33]} Be6 {[%emt 0:01:34]} 36. Rxb7 {[%emt 0:02:30]} Rxb7 {[%emt 0:00:28]} 37. Nxb7 {[%emt 0:00:02]} Bh3 {[%emt 0:02:22]} 38. Rc1 {[%emt 0:00:46]} Rd2 {[%emt 0:00:21]} 39. Nd6 {[%emt 0:00:15]} h5 {[%emt 0:01:08]} 40. Kg1 {[%emt 0:01:50]} Rg2+ {[%emt 0:00:31]} 41. Kh1 {[%emt 0:30:14]} Re2 {[%emt 0:30:31]} 42. Kg1 {[%emt 0:00:36]} Kf6 {[%emt 0:00:40]} 43. Kh1 {[%emt 0:00:00]} Ke7 {[%emt 0:00:00]} 44. Kg1 {[%emt 0:00:00]} Rg2+ {[%emt 0:00:00]} 45. Kh1 {[%emt 0:00:00]} h4 {[%emt 0:00:00]} 46. gxh4 {[%emt 0:00:00]} Rg4 {[%emt 0:00:00]} 47. Rc3 {[%emt 0:00:00]} ({But not} 47. Nc8+ $2 Kf6 48. Nd6 (48. e5+ Ke6 $17) 48... Bg2+ (48... Rxh4 49. Rc3 $11) (48... Rxf4 49. Re1 $17) 49. Kg1 Bxe4+ 50. Kf2 Bd5 $19 (50... Rxf4+ 51. Ke3 $11)) 47... Bg2+ {[%emt 0:00:00]} 48. Kg1 {[%emt 0:00:00]} Bxe4+ {[%emt 0:00:00]} 49. Kf2 {[%emt 0:00:00]} Bd5 {[%emt 0:00:00]} 50. f5 {[%emt 0:00:00]} ({White should play} 50. Re3+ $11 Kf8 51. h5) 50... Rg2+ {[%emt 0:00:00]} 51. Ke3 {[%emt 0:00:00]} gxf5 {[%emt 0:00:00]} 52. Nxf5+ {[%emt 0:00:00]} Kf6 {[%emt 0:00:00]} 53. Ng3 {[%emt 0:00:00]} (53. Nd6 $15) 53... Ke5 {[%emt 0:00:00]} 54. Ne2 {[%emt 0:01:45]} (54. Rc1 $17 {is a better defense.}) 54... Rxh2 $19 {[%emt 0:00:00]} 55. Nf4 {[%emt 0:00:13]} Rxh4 {[%emt 0:00:00]} 56. Rc2 $2 {[%emt 0:01:20]} (56. Nd3+ $17 Kf5 57. Rc1) 56... Rxf4 {[%emt 0:00:13]} 0-1

[Event "German Bundesliga 2024-25"]
[Site "Germany"]
[Date "2024.10.06"]
[Round "2.8"]
[White "Tarlev, Konstantin"]
[Black "Kramer, Julian"]
[Result "0-1"]
[Annotator "TA"]
[ECO "B67"]
[WhiteElo "2579"]
[BlackElo "2494"]
[PlyCount "76"]
[EventDate "2024.09.27"]
[EventType "team-tourn"]
[EventCountry "GER"]
[SourceTitle "playchess.com"]
[Source "ChessBase"]
[SourceQuality "1"]
[WhiteTeam "Viernheim"]
[BlackTeam "Hamburg"]
[TimeControl "40/5400+30:1800+30"]

{[%evp 20,76,33,14,11,20,46,47,29,39,27,-21,-16,-13,-9,-24,-17,-20,-37,-41,0,0,0,-37,-38,-32,-36,-62,-25,-127,-147,-171,-84,-325,-335,-300,-40,-116,-92,-93,-110,-215,-75,-43,-32,-140,-146,-145,-143,-160,-120,-222,-202,-359,-243,-229,-187,-492,-486]} 1. e4 {[%emt 0:05:51]} c5 {[%emt 0:00:24]} 2. Nf3 {[%emt 0:00:05]} d6 {[%emt 0:00:04]} 3. d4 {[%emt 0:00:05]} cxd4 {[%emt 0:00:04]} 4. Nxd4 {[%emt 0:00:03]} Nf6 {[%emt 0:00:05]} 5. Nc3 {[%emt 0:00:04]} Nc6 {[%emt 0:00:04]} 6. Bg5 {[%emt 0:00:11]} e6 {[%emt 0:00:06]} 7. Qd2 {[%emt 1:27:41]} a6 {[%emt 0:00:06]} 8. O-O-O {[%emt 0:00:17]} Bd7 {[%emt 0:00:05]} 9. f3 {[%emt 0:00:38]} Nxd4 {[%emt 0:01:10]} 10. Qxd4 {[%emt 0:00:05]} Be7 {[%emt 0:00:05]} 11. h4 {[%emt 0:00:59]} Qc7 {[%emt 0:04:14]} 12. g4 {[%emt 0:04:55]} h5 {[%emt 0:02:12]} 13. gxh5 $1 {[%emt 0:01:03]} Nxh5 {[%emt 0:00:33] White is slightly better.} 14. Bxe7 {[%emt 0:09:59]} Kxe7 {[%emt 0:00:05] [#]} 15. e5 dxe5 $11 {[%emt 0:14:05]} 16. Qb4+ {[%emt 0:00:12]} Ke8 {[%emt 0:14:21] With the idea ...Bc6.} 17. Ne4 {[%emt 0:25:41] Nd6+ would now be deadly.} Bc6 {[%emt 0:06:29]} 18. Nd6+ Kf8 {[%emt 0:00:53]} 19. Nf5+ {[%emt 0:13:15]} Ke8 {[%emt 0:04:05]} 20. Nd6+ {[%emt 0:00:23]} Kf8 {[%emt 0:00:05]} 21. Nf5+ $1 {[%emt 0:06:16]} Kg8 {[%emt 0:06:19]} 22. Ne7+ {[%emt 0:00:07]} Kh7 23. Bd3+ {[%emt 0:03:16]} e4 {[%emt 0:04:35]} 24. fxe4 {[%emt 0:02:18] [#]} (24. Bxe4+ $2 Bxe4 25. Qxe4+ g6 26. Nxg6 fxg6 $19) (24. Qc5 $1 $11 {was the only way to keep the balance.} Qf4+ 25. Rd2) 24... Bb5 $1 $17 {[%emt 0:00:05][%mdl 512]} 25. Rhf1 {[#]} (25. c4 Nf4) 25... Rhd8 {[%emt 0:37:30]} (25... Bxd3 $1 $19 26. Rxd3 Rad8) 26. Bxb5 $2 {[%emt 0:01:54]} (26. Kb1 $17) 26... axb5 $19 {[%emt 0:11:09]} (26... Rxd1+ 27. Rxd1 axb5 28. Qxb5 $17) 27. Rxd8 {[%emt 0:04:34]} (27. Rxf7 Rxd1+ 28. Kxd1 Rd8+ (28... Rxa2 29. Qxb5 Ng3 30. Kd2 $17) 29. Ke1 (29. Kc1 $2 Nf4 $19) 29... Qxc2 $19) (27. Qxb5 Ra5 28. Qb3 Rxd1+ (28... Qxe7 $2 29. Rde1 $19) 29. Rxd1 Qxe7 $19) 27... Qxd8 {[%emt 0:00:10]} ({Better is} 27... Rxd8 $19 28. Qxb5 Ng3) 28. Rd1 {[%emt 0:01:57]} (28. Rxf7 $2 Rxa2 29. b3 (29. Qxb5 $2 Ra1#) (29. Kb1 $2 Ra4 $19) 29... Qc7 $19) (28. Qxb5 $2 Ra5 29. Qd3 (29. Qxb7 $2 Rxa2 30. Nd5 Ra1+ 31. Kd2 Rxf1 $19) 29... Qxe7 $19) (28. Kb1 $1 $15) 28... Qb6 $40 {[%emt 0:00:29][%mdl 128] Black attacks with force.} 29. a3 {[%emt 0:00:22]} Nf6 {[%emt 0:04:04]} 30. Kb1 {[%emt 0:00:36] [#]} (30. e5 $17 Qe3+ 31. Qd2) 30... Ra4 {[%emt 0:00:38]} (30... Qc7 $1 $19 {White must now prevent ...Re8.} 31. Qd6 Qxd6 32. Rxd6 Re8 (32... Nxe4 33. Rb6 $17)) 31. Qc3 {[%emt 0:00:06]} Rxe4 {[%emt 0:01:17][%cal Ob5b4] Hoping for ...b4!} 32. Qc8 {[%emt 0:00:16]} ({Only move:} 32. Nc8 $1 $15 Qc6 33. Qxc6 bxc6 34. Nd6 Rxh4 35. Nxf7) 32... Rd4 {[%emt 0:04:19]} ({And not} 32... Rxh4 33. Rd8 Kh6 34. Rh8+ Kg5 35. Qf8 $16) 33. Rxd4 {[%emt 0:00:08]} Qxd4 {[%emt 0:00:03]} 34. Qxb7 {[%emt 0:00:02]} Qxh4 {[%emt 0:04:32] KQN-KQN} 35. Nc8 {[%emt 0:02:03]} (35. Qxb5 $17 g5 36. Nc6) 35... Qh5 $19 {[%emt 0:00:54]} 36. b3 $2 {[%emt 0:00:10]} (36. Na7 {was called for.}) 36... Qd1+ {[%emt 0:00:31]} 37. Kb2 {[%emt 0:00:02]} Qd4+ {[%emt 0:00:05]} 38. Kc1 $2 {[%emt 0:00:21]} (38. Kb1 {was the crucial defense.}) 38... Ne4 {[%emt 0:01:00] Weighted Error Value: White=0.48/Black=0.39.  Loses game:     	White=1     	---        Missed win:     	---       	Black=1      Mistake:       	White=8     	Black=2      Inaccurate:     	---       	Black=3      OK:         	White=10    	Black=6      Best:        	White=4     	Black=7      Strong:       	White=2     	---        Brilliant:      	---       	Black=1} 0-1